bitfinex-derivatives/quotes_SOLF0:USTF0_20241027
["timestamp","ask_amount","ask_price","bid_price","bid_amount"]
[1730049360510,6.22,177.54,177.49,10.83441466]
[1730049361014,6.22,177.79,177.53,10.83441466]
[1730049361306,10.83441466,177.74,177.63,10.83441466]
[1730049361516,2.817,177.68,177.63,10.83441466]
[1730049362502,2.8168,177.7,177.65,2.8174]
[1730049362815,6.22,177.72,177.63,10.83441466]
[1730049363003,2.8168,177.69,177.64,2.8176]
[1730049363199,6.22,177.72,177.63,10.83441466]
[1730049363710,10.83441466,177.69,177.55,6.22]
[1730049363912,10.83441466,177.66,177.56,10.83441466]
[1730049364211,2.8177,177.63,177.56,10.83441466]
[1730049364509,2.8177,177.63,177.55,6.22]
[1730049365311,2.8176,177.64,177.58,2.8185]
[1730049365709,7.4074,177.67,177.55,6.22]
[1730049365914,54.76,177.76,177.57,17.32015885]
[1730049366104,20.93895885,177.74,177.6,17.32015885]
[1730049366304,20.93895885,177.74,177.61,2.8179]
[1730049366509,2.8171,177.68,177.61,2.8179]
[1730049366806,20.93895885,177.74,177.61,2.8179]
[1730049367009,2.8171,177.68,177.61,2.8179]
[1730049367316,6.2,177.7,177.6,17.32015885]
[1730049367711,2.817,177.68,177.62,2.8179]
[1730049367898,17.32015885,177.74,177.6,23.52015885]
[1730049368105,23.52015885,177.78,177.63,17.32015885]
[1730049368314,23.52015885,177.78,177.64,2.8175]
[1730049369010,2.8168,177.7,177.64,2.8175]
[1730049369405,2.8168,177.7,177.65,2.8173]
[1730049371216,6.2,177.8,177.68,2.8169]
[1730049371408,23.52015885,177.8,177.68,2.8169]
[1730049371911,2.8161,177.74,177.68,2.8169]
[1730049372116,23.52015885,177.8,177.68,2.8169]
[1730049373009,2.8163,177.72,177.64,1.1566]
[1730049373219,17.32015885,177.77,177.67,2.8171]
[1730049373414,17.32015885,177.77,177.64,1.1566]
[1730049373811,17.32015885,177.74,177.64,2.8175]
[1730049374008,6.2,177.73,177.6,17.32015885]
[1730049374212,17.32015885,177.68,177.55,1.1592]
[1730049374412,6.2,177.67,177.55,1.1592]
[1730049374615,17.32015885,177.65,177.55,1.1592]
[1730049374915,2.8182,177.61,177.56,2.8187]
[1730049376206,2.8182,177.61,177.55,1.1592]
[1730049376409,6.2,177.67,177.51,17.32015885]
[1730049376618,17.32015885,177.63,177.51,17.32015885]
[1730049376817,9.8602,177.62,177.51,17.32015885]
[1730049377012,2.8192,177.54,177.48,17.32015885]
[1730049377212,6.2,177.56,177.45,17.32015885]
[1730049377413,6.2,177.56,177.48,2.82]
[1730049377810,2.8193,177.53,177.45,17.32015885]
[1730049378015,2.8193,177.53,177.48,2.82]
[1730049378425,6.2,177.54,177.47,17.32015885]
[1730049378723,6.2,177.54,177.51,2.8196]
[1730049379228,2.8189,177.56,177.52,2.8195]
[1730049382226,6.2,177.57,177.5,17.32015885]
[1730049382425,9.0187,177.57,177.52,2.8195]
[1730049383432,1.181,177.62,177.52,17.32015885]
[1730049386027,2.8185,177.58,177.55,2.819]
[1730049386227,1.181,177.62,177.52,17.32015885]
[1730049386615,1.181,177.62,177.51,2.8196]
[1730049386616,2.8191,177.55,177.51,2.8196]
[1730049387123,2.8191,177.55,177.49,17.32015885]
[1730049388341,2.819,177.55,177.52,2.8195]
[1730049388815,2.8189,177.56,177.52,2.8195]
[1730049389019,6.1,177.57,177.52,2.8195]
[1730049390130,6.1,177.57,177.49,17.32015885]
[1730049390324,6.1,177.57,177.54,2.8191]
[1730049391432,8.9187,177.57,177.54,2.8191]
[1730049395121,6.1,177.57,177.5,17.32015885]
[1730049395327,2.8191,177.55,177.5,17.32015885]
[1730049395828,2.8189,177.56,177.5,17.32015885]
[1730049396338,2.8189,177.56,177.52,2.8193]
[1730049396734,2.819,177.56,177.5,17.32015885]
[1730049397035,2.819,177.56,177.52,2.8194]
[1730049398937,2.819,177.56,177.5,17.32015885]
[1730049400135,2.819,177.56,177.53,2.8193]
[1730049401539,2.819,177.56,177.5,17.32015885]
[1730049402240,2.8191,177.55,177.5,17.32015885]
[1730049402439,2.8191,177.55,177.5,10.83304382]
[1730049402829,2.8191,177.55,177.52,2.8195]
[1730049405234,6.1,177.57,177.53,10.83304382]
[1730049405433,6.1,177.57,177.55,2.819]
[1730049405635,6.1,177.57,177.53,10.83304382]
[1730049406338,6.1,177.57,177.47,4.84890263]
[1730049406536,6.1,177.57,177.48,10.83304382]
[1730049406735,1.1647,177.56,177.48,10.83304382]
[1730049407545,2.8193,177.54,177.51,2.8196]
[1730049408839,2.8193,177.54,177.48,10.83304382]
[1730049408840,2.3931,177.56,177.48,10.83304382]
[1730049409047,1.2327,177.55,177.48,10.83304382]
[1730049409840,1.2327,177.55,177.49,2.8199]
[1730049409841,2.8196,177.52,177.49,2.8199]
[1730049410044,1.2327,177.55,177.48,10.83304382]
[1730049410242,1.2327,177.55,177.43,1.1976]
[1730049410438,1.2327,177.55,177.45,10.83304382]
[1730049410745,1.2327,177.55,177.48,2.8201]
[1730049411635,10.83304382,177.54,177.45,2.8205]
[1730049412238,2.8203,177.47,177.45,2.8205]
[1730049412549,5.8,177.5,177.46,2.8204]
[1730049412946,2.8202,177.48,177.46,2.8204]
[1730049413148,2.8202,177.48,177.43,10.83304382]
[1730049413347,2.8202,177.48,177.45,2.8205]
[1730049413644,5.8,177.5,177.43,10.83304382]
[1730049413837,5.8,177.5,177.44,2.8207]
[1730049414256,5.8,177.5,177.43,10.83304382]
[1730049414257,2.8205,177.46,177.43,10.83304382]
[1730049414440,5.8,177.5,177.43,2.8208]
[1730049414646,16.63304382,177.5,177.35,7.0536]
[1730049414849,2.8208,177.44,177.39,10.83304382]
[1730049415045,2.8208,177.44,177.41,2.8212]
[1730049415343,2.821,177.43,177.39,10.83304382]
[1730049415847,5.8,177.45,177.42,10.83304382]
[1730049416453,5.8,177.49,177.44,10.83304382]
[1730049416643,10.83304382,177.54,177.44,10.83304382]
[1730049416644,5.8,177.5,177.44,10.83304382]
[1730049416844,1.2327,177.55,177.44,10.83304382]
[1730049417048,1.2284,177.56,177.49,10.83304382]
[1730049417644,2.8193,177.54,177.5,2.8198]
[1730049418148,1.2284,177.56,177.5,2.8198]
[1730049418454,12.06144382,177.56,177.45,10.83304382]
[1730049419560,2.8197,177.51,177.48,2.8201]
[1730049420241,2.8199,177.5,177.47,2.8202]
[1730049420442,5.8,177.52,177.47,2.8202]
[1730049420838,2.8199,177.5,177.47,2.8202]
[1730049421044,2.8199,177.5,177.48,2.8201]
[1730049422644,10.83304382,177.51,177.4,10.83304382]
[1730049422849,10.83304382,177.51,177.37,1.2385]
[1730049422850,12.00954382,177.49,177.38,10.83304382]
[1730049423047,1.2069,177.48,177.38,10.83304382]
[1730049423245,5.8,177.47,177.38,10.83304382]
[1730049423862,2.8209,177.44,177.41,2.8212]
[1730049424057,5.8,177.47,177.38,10.83304382]
[1730049424250,16.63304382,177.47,177.38,10.83304382]
[1730049424477,2.8211,177.42,177.39,2.8215]
[1730049424762,2.8211,177.42,177.34,10.83304382]
[1730049424763,5.8,177.42,177.34,10.83304382]
[1730049424953,2.8216,177.39,177.36,2.822]
[1730049425248,5.8,177.42,177.34,10.83304382]
[1730049426541,2.8215,177.4,177.37,2.8219]
[1730049426747,2.8215,177.4,177.34,10.83304382]
[1730049427156,2.8215,177.4,177.36,2.8219]
[1730049428857,2.8215,177.4,177.34,10.83304382]
[1730049429059,2.8215,177.4,177.37,2.8218]
[1730049430050,5.8,177.42,177.37,10.83304382]
[1730049430448,5.8,177.42,177.38,2.8216]
[1730049430646,5.8,177.42,177.37,10.83304382]
[1730049430952,2.8213,177.41,177.38,2.8217]
[1730049431144,5.8,177.42,177.34,10.83304382]
[1730049431551,2.8215,177.4,177.36,2.822]
[1730049431858,2.8215,177.4,177.34,10.83304382]
[1730049432259,2.8217,177.39,177.36,2.822]
[1730049432752,5.8,177.42,177.35,10.83304382]
[1730049432952,5.8,177.42,177.37,10.83304382]
[1730049433146,5.8,177.42,177.35,10.83304382]
[1730049433550,2.8215,177.4,177.37,2.8219]
[1730049435860,2.8215,177.4,177.38,2.8217]
[1730049436160,2.8216,177.39,177.35,10.83304382]
[1730049436363,2.8216,177.39,177.32,10.83304382]
[1730049436665,2.8216,177.39,177.36,2.8219]
[1730049437653,2.8216,177.39,177.32,10.83304382]
[1730049437654,3.968,177.41,177.38,2.8217]
[1730049438559,2.8214,177.4,177.38,2.8217]
[1730049439357,2.8214,177.4,177.38,0.9121]
[1730049439560,2.8214,177.4,177.32,10.83304382]
[1730049439760,4.0666,177.4,177.32,10.83304382]
[1730049440061,4.0666,177.4,177.37,2.8217]
[1730049440854,4.0666,177.4,177.32,10.83304382]
[1730049441164,1.2452,177.4,177.29,4.83526205]
[1730049441460,2.8219,177.37,177.29,10.83304382]
[1730049441659,5.56,177.37,177.31,2.8228]
[1730049441859,5.56,177.37,177.29,10.83304382]
[1730049442361,8.3819,177.37,177.34,2.8222]
[1730049442557,5.56,177.37,177.29,10.83304382]
[1730049442758,8.382,177.37,177.35,2.8222]
[1730049442962,8.382,177.37,177.29,10.83304382]
[1730049443355,8.382,177.37,177.34,2.8223]
[1730049443550,5.56,177.37,177.34,2.8223]
[1730049443756,5.56,177.37,177.26,6.8273]
[1730049443757,2.8222,177.36,177.26,6.8273]
[1730049444066,2.8222,177.36,177.33,2.8224]
[1730049444360,5.56,177.37,177.29,10.83304382]
[1730049444560,8.382,177.37,177.34,2.8222]
[1730049444956,5.56,177.37,177.34,2.8222]
[1730049445157,2.8221,177.36,177.34,2.8222]
[1730049445359,5.56,177.37,177.26,6.8273]
[1730049445568,5.56,177.37,177.31,2.8227]
[1730049446357,24.7637749,177.68,177.36,10.83304382]
[1730049446562,2.459,177.54,177.45,10.83304382]
[1730049447162,5.56,177.53,177.45,10.83304382]
[1730049447359,5.56,177.53,177.49,2.8202]
[1730049447575,2.459,177.54,177.47,10.83304382]
[1730049448067,2.459,177.54,177.49,2.8201]
[1730049449262,2.459,177.54,177.44,10.83304382]
[1730049449464,10.83304382,177.51,177.39,10.83304382]
[1730049450056,2.8201,177.5,177.45,2.8209]
[1730049450263,10.83304382,177.49,177.37,2.3166]
[1730049450466,5.56,177.48,177.37,13.14964382]
[1730049451164,5.56,177.48,177.37,11.98454382]
[1730049451368,5.56,177.48,177.41,2.8215]
[1730049451961,10.83304382,177.47,177.39,2.8218]
[1730049452165,10.83304382,177.47,177.37,1.1515]
[1730049452369,2.3961,177.46,177.37,1.1515]
[1730049452575,10.83304382,177.45,177.34,10.83304382]
[1730049452763,10.83304382,177.45,177.32,10.83304382]
[1730049452965,2.8216,177.41,177.32,10.83304382]
[1730049453164,5.56,177.4,177.34,2.8226]
[1730049453369,5.56,177.4,177.32,10.83304382]
[1730049454470,5.56,177.4,177.36,2.8223]
[1730049455572,5.56,177.4,177.37,2.8221]
[1730049459970,5.56,177.4,177.32,10.83304382]
[1730049460170,5.56,177.4,177.33,1.1835]
[1730049460569,5.56,177.4,177.38,2.8219]
[1730049460969,2.3961,177.46,177.37,10.83304382]
[1730049461176,5.56,177.45,177.42,2.8213]
[1730049461371,5.56,177.44,177.42,2.8213]
[1730049462975,5.56,177.44,177.37,10.83304382]
[1730049463280,2.8214,177.42,177.39,2.8217]
[1730049463878,2.8221,177.38,177.35,2.8224]
[1730049465679,5.48,177.39,177.28,1.1669]
[1730049465680,2.8223,177.37,177.33,2.8226]
[1730049465980,5.48,177.39,177.28,1.1669]
[1730049465981,10.83304382,177.38,177.28,1.1669]
[1730049466177,13.21254382,177.38,177.28,1.1669]
[1730049466384,2.8228,177.33,177.3,2.8232]
[1730049466575,8.3028,177.33,177.3,2.8232]
[1730049466771,5.48,177.33,177.26,10.83304382]
[1730049466971,2.8231,177.32,177.28,2.8235]
[1730049467379,2.8231,177.32,177.24,10.83304382]
[1730049467684,8.3028,177.33,177.24,10.83304382]
[1730049468186,8.3028,177.33,177.29,2.8233]
[1730049468876,5.48,177.33,177.3,2.8232]
[1730049469877,2.8236,177.28,177.25,2.8241]
[1730049470072,5.48,177.28,177.25,2.8241]
[1730049470472,5.48,177.28,177.2,10.83304382]
[1730049470678,5.48,177.28,177.23,10.83304382]
[1730049471077,5.48,177.28,177.27,2.8237]
[1730049471585,5.48,177.28,177.23,10.83304382]
[1730049471784,5.48,177.28,177.17,1.2692]
[1730049471975,2.8241,177.25,177.17,10.83304382]
[1730049472180,2.8241,177.25,177.21,2.8246]
[1730049472380,10.83304382,177.26,177.17,10.83304382]
[1730049472781,13.65714382,177.26,177.22,2.8245]
[1730049472981,10.83304382,177.24,177.13,10.83304382]
[1730049473184,2.825,177.2,177.16,2.8255]
[1730049473387,5.5,177.19,177.16,2.8255]
[1730049473690,5.5,177.19,177.13,10.83304382]
[1730049473886,10.83304382,177.25,177.15,10.83304382]
[1730049474087,5.5,177.24,177.15,10.83304382]
[1730049474478,2.8245,177.23,177.19,2.825]
[1730049474680,5.5,177.24,177.15,10.83304382]
[1730049475186,2.8246,177.22,177.18,2.8251]
[1730049475692,2.825,177.2,177.16,2.8254]
[1730049475893,10.83304382,177.23,177.16,2.8254]
[1730049475894,5.5,177.19,177.16,2.8254]
[1730049478001,5.5,177.19,177.13,10.83304382]
[1730049478283,5.5,177.19,177.18,2.8252]
[1730049478780,10.83304382,177.25,177.19,2.825]
[1730049478781,5.5,177.22,177.19,2.825]
[1730049478988,5.5,177.22,177.18,10.83304382]
[1730049479178,5.5,177.24,177.18,10.83304382]
[1730049479394,5.5,177.24,177.22,2.8244]
[1730049479985,5.5,177.25,177.23,2.8242]
[1730049480292,5.5,177.25,177.2,10.83304382]
[1730049480589,1.192,177.35,177.22,10.83304382]
[1730049480590,2.8234,177.3,177.22,10.83304382]
[1730049480795,5.5,177.32,177.27,10.83304382]
[1730049481185,2.8233,177.3,177.22,10.83304382]
[1730049481384,5.5,177.32,177.22,10.83304382]
[1730049481885,2.8232,177.31,177.27,2.8236]
[1730049484499,2.8234,177.29,177.26,2.8239]
[1730049485199,2.8234,177.29,177.25,2.824]
[1730049485490,5.5,177.32,177.19,17.34520773]
[1730049485689,2.8234,177.3,177.26,2.8238]
[1730049486084,5.5,177.32,177.26,2.8238]
[1730049487397,2.8234,177.3,177.26,2.8238]
[1730049487586,5.5,177.32,177.26,2.8238]
[1730049487990,2.8232,177.31,177.26,2.8238]
[1730049488189,5.5,177.32,177.26,2.8238]
[1730049488786,5.5,177.31,177.19,17.34520773]
[1730049489099,2.8237,177.28,177.24,2.8242]
[1730049489296,5.5,177.3,177.24,2.8242]
[1730049490297,17.34520773,177.29,177.16,20.69130773]
[1730049490491,17.34520773,177.29,177.21,2.8246]
[1730049490895,2.8242,177.25,177.21,2.8246]
[1730049491099,5.5,177.24,177.21,2.8246]
[1730049491395,5.5,177.24,177.22,2.8245]
[1730049492195,5.5,177.24,177.23,2.8244]
[1730049494600,5.5,177.24,177.16,18.49720773]
[1730049494800,5.5,177.24,177.22,2.8245]
[1730049500410,5.5,177.24,177.21,2.8246]
[1730049500411,8.3243,177.24,177.21,2.8246]
[1730049502118,5.34,177.23,177.21,2.8246]
[1730049504716,4.07889006,177.34,177.16,1.152]
[1730049504717,5.34,177.25,177.19,10.84834546]
[1730049504920,5.34,177.26,177.19,10.84834546]
[1730049505416,8.4628,177.45,177.16,1.152]
[1730049505417,5.89206349,177.52,177.3,16.93]
[1730049505631,2.4502,177.63,177.48,10.84834546]
[1730049505823,10.84834546,177.59,177.48,10.84834546]
[1730049506018,16.50834546,177.59,177.48,10.84834546]
[1730049506318,2.4502,177.63,177.52,10.84834546]
[1730049506619,5.66,177.62,177.55,2.8193]
[1730049508021,5.66,177.62,177.49,2.25579912]
[1730049508022,10.84834546,177.61,177.49,2.25579912]
[1730049508217,10.84834546,177.61,177.5,1.40988666]
[1730049508520,22.99416815,177.62,177.47,22.99416815]
[1730049508718,22.99416815,177.62,177.48,1.41013554]
[1730049508913,2.8186,177.6,177.52,2.8197]
[1730049509212,5.66,177.62,177.5,17.33416815]
[1730049510018,5.66,177.62,177.54,2.8194]
[1730049510217,5.66,177.62,177.5,17.33416815]
[1730049511218,5.66,177.62,177.54,2.8193]
[1730049511826,5.66,177.62,177.55,2.8193]
[1730049513126,5.66,177.62,177.56,2.8191]
[1730049513624,8.4782,177.62,177.56,2.8191]
[1730049514223,5.66,177.62,177.53,17.33416815]
[1730049514425,8.1102,177.63,177.53,17.33416815]
[1730049515014,5.66,177.62,177.5,17.33416815]
[1730049515417,5.66,177.62,177.51,1.40993795]
[1730049515621,2.8184,177.61,177.54,2.8193]
[1730049516025,2.8184,177.61,177.5,17.33416815]
[1730049516322,2.8184,177.61,177.54,2.8195]
[1730049516522,2.8184,177.61,177.5,17.33416815]
[1730049516718,2.8184,177.61,177.51,1.40990543]
[1730049516914,2.8184,177.61,177.55,2.8192]
[1730049518914,2.8184,177.61,177.56,2.8191]
[1730049520326,2.8184,177.61,177.57,2.819]
[1730049520629,2.8185,177.6,177.53,17.33416815]
[1730049520830,2.8185,177.6,177.55,2.8193]
[1730049521027,5.66,177.62,177.55,2.8193]
[1730049521227,5.66,177.62,177.5,17.33416815]
[1730049521427,5.66,177.62,177.53,2.8195]
[1730049521826,2.8191,177.57,177.49,17.33416815]
[1730049522026,5.66,177.62,177.49,17.33416815]
[1730049522227,2.8197,177.53,177.47,17.33416815]
[1730049522428,2.8197,177.53,177.44,17.33416815]
[1730049522622,5.66,177.55,177.44,17.33416815]
[1730049522823,5.66,177.55,177.45,1.41029565]
[1730049523028,5.66,177.55,177.44,17.33416815]
[1730049523425,2.8203,177.49,177.44,20.15506815]
[1730049523634,2.8203,177.49,177.44,17.33416815]
[1730049524030,2.8203,177.49,177.4,5.66]
[1730049524228,2.8203,177.49,177.41,18.74469876]
[1730049524431,5.66,177.51,177.41,17.33416815]
[1730049524631,2.8203,177.49,177.41,17.33416815]
[1730049524831,5.66,177.51,177.41,17.33416815]
[1730049525031,5.66,177.51,177.42,1.4105084]
[1730049525236,2.8201,177.5,177.45,2.8208]
[1730049525627,2.8201,177.5,177.41,17.33416815]
[1730049525826,5.66,177.51,177.47,2.8205]
[1730049526934,2.4284,177.53,177.5,2.8201]
[1730049527156,2.4284,177.53,177.5,17.33416815]
[1730049527333,1.2362,177.53,177.5,17.33416815]
[1730049527551,2.8195,177.54,177.5,20.15416815]
[1730049527727,5.66,177.55,177.5,17.33416815]
[1730049528128,5.66,177.55,177.51,2.8199]
[1730049528840,8.4794,177.55,177.51,2.8199]
[1730049530635,2.8195,177.54,177.51,2.8199]
[1730049530835,5.66,177.55,177.51,2.8199]
[1730049531241,8.4794,177.55,177.51,2.8199]
[1730049532043,2.8195,177.54,177.51,2.8199]
[1730049532944,5.66,177.55,177.5,10.83322827]
[1730049533146,2.819,177.57,177.53,2.8195]
[1730049534448,6.8075,177.59,177.53,2.8195]
[1730049535038,2.8192,177.56,177.53,2.8195]
[1730049536949,2.8191,177.57,177.54,2.8194]
[1730049537146,6.7275,177.59,177.52,10.83322827]
[1730049537345,1.1475,177.59,177.52,10.83322827]
[1730049537855,2.8189,177.58,177.54,2.8193]
[1730049538642,2.819,177.57,177.54,2.8193]
[1730049539447,5.56,177.6,177.55,10.83322827]
[1730049539647,2.8184,177.61,177.58,2.8187]
[1730049540252,2.8183,177.62,177.57,13.65212827]
[1730049540449,1.2177,177.63,177.57,13.65212827]
[1730049541243,2.8185,177.61,177.57,13.65212827]
[1730049541540,2.8185,177.61,177.58,2.8188]
[1730049542550,2.8185,177.61,177.52,5.56]
[1730049542551,2.8189,177.58,177.54,2.8193]
[1730049543044,12.05092827,177.63,177.54,2.8193]
[1730049544451,2.819,177.58,177.54,2.8193]
[1730049545748,12.05092827,177.63,177.54,2.8193]
[1730049545948,2.819,177.57,177.54,2.8193]
[1730049546150,10.83322827,177.61,177.52,10.83322827]
[1730049546347,2.8197,177.53,177.47,10.83322827]
[1730049546658,5.56,177.58,177.47,10.83322827]
[1730049546953,2.8198,177.52,177.49,2.8201]
[1730049547654,2.8198,177.52,177.5,2.8201]
[1730049548247,2.8197,177.53,177.5,2.8201]
[1730049550788,10.83322827,177.56,177.44,5.56]
[1730049550959,10.83322827,177.56,177.47,10.83322827]
[1730049551357,2.8199,177.52,177.49,2.8201]
[1730049551557,10.83322827,177.56,177.47,10.83322827]
[1730049551858,10.83322827,177.56,177.44,5.56]
[1730049552059,2.8197,177.53,177.5,2.8201]
[1730049555354,2.8199,177.52,177.49,2.8202]
[1730049555655,5.56,177.53,177.45,10.83322827]
[1730049555862,1.1844,177.52,177.45,10.83322827]
[1730049556258,2.8202,177.5,177.47,2.8204]
[1730049556857,2.82,177.51,177.48,2.8204]
[1730049558770,1.1844,177.52,177.48,2.8204]
[1730049558771,2.8201,177.5,177.48,2.8204]
[1730049559568,2.82,177.51,177.48,2.8204]
[1730049559770,1.1844,177.52,177.48,2.8204]
[1730049560168,2.8201,177.5,177.47,2.8205]
[1730049562073,1.1844,177.52,177.48,2.8203]
[1730049562074,2.82,177.51,177.48,2.8203]
[1730049562969,2.8202,177.5,177.47,13.65372827]
[1730049563163,1.1844,177.52,177.47,13.65372827]
[1730049563669,2.8202,177.5,177.48,2.8204]
[1730049564068,2.82,177.51,177.47,10.83322827]
[1730049564267,2.82,177.51,177.48,2.8204]
[1730049564768,2.82,177.51,177.47,10.83322827]
[1730049564769,5.28,177.55,177.51,2.8199]
[1730049565375,2.8196,177.53,177.51,2.8199]
[1730049568268,5.28,177.55,177.5,10.83322827]
[1730049568470,5.28,177.55,177.5,13.65322827]
[1730049568872,2.8197,177.53,177.5,13.65322827]
[1730049570972,2.8198,177.52,177.5,13.65322827]
[1730049571277,2.8198,177.52,177.49,2.8202]
[1730049571574,2.8199,177.52,177.49,2.8202]
[1730049574579,2.8199,177.52,177.51,6.93453755]
[1730049574783,5.28,177.54,177.52,2.8197]
[1730049575077,5.28,177.54,177.53,6.93453755]
[1730049575580,5.28,177.54,177.52,2.8197]
[1730049575786,5.28,177.54,177.45,6.28851947]
[1730049576079,5.28,177.54,177.49,9.75463755]
[1730049576681,2.8199,177.52,177.49,2.8201]
[1730049577597,12.04311522,177.57,177.49,10.83701522]
[1730049577598,6.4861,177.57,177.49,10.83701522]
[1730049577882,6.4861,177.57,177.51,10.83701522]
[1730049578388,2.8193,177.55,177.53,2.8195]
[1730049578874,6.4861,177.57,177.51,10.83701522]
[1730049579080,6.4861,177.57,177.52,2.8197]
[1730049580373,2.8195,177.54,177.52,2.8197]
[1730049582381,2.8196,177.53,177.51,2.8199]
[1730049582585,2.8196,177.53,177.47,10.83701522]
[1730049582979,2.8198,177.52,177.5,2.8199]
[1730049583580,5.28,177.54,177.47,10.83701522]
[1730049583779,2.82,177.51,177.45,10.83701522]
[1730049583992,10.83701522,177.53,177.37,100.53347672]
[1730049584293,2.8205,177.48,177.45,2.8209]
[1730049584478,5.28,177.52,177.47,10.83701522]
[1730049584683,2.82,177.51,177.48,2.8203]
[1730049588088,2.8202,177.5,177.47,13.65751522]
[1730049588388,2.8202,177.5,177.47,10.83701522]
[1730049588585,5.28,177.52,177.47,10.83701522]
[1730049588788,5.28,177.52,177.51,2.8199]
[1730049590088,5.28,177.52,177.47,10.83701522]
[1730049590288,5.28,177.52,177.5,2.82]
[1730049590787,8.0998,177.52,177.5,2.82]
[1730049591290,5.28,177.52,177.47,10.83701522]
[1730049591483,5.28,177.52,177.51,2.8199]
[1730049593190,5.28,177.52,177.5,2.82]
[1730049595192,2.8196,177.53,177.5,2.82]
[1730049595193,7.8196,177.53,177.5,2.82]
[1730049596589,5.0,177.53,177.52,2.8198]
[1730049596790,5.0,177.53,177.48,4.88630816]
[1730049596995,5.0,177.53,177.47,10.83701522]
[1730049597187,7.8197,177.53,177.5,2.82]
[1730049598395,5.0,177.53,177.5,2.82]
[1730049598594,2.8198,177.52,177.5,2.82]
[1730049600299,2.8203,177.49,177.4,5.6433]
[1730049600492,2.8203,177.49,177.43,6.93540713]
[1730049600797,2.8203,177.49,177.47,2.8205]
[1730049601192,9.75550713,177.5,177.47,2.8205]
[1730049601695,2.8203,177.49,177.47,2.8205]
[1730049601898,11.93540713,177.51,177.48,2.8203]
[1730049602100,2.4183,177.56,177.48,6.93540713]
[1730049602297,7.8197,177.53,177.48,6.93540713]
[1730049603193,5.0,177.53,177.51,2.8199]
[1730049603392,6.93540713,177.54,177.51,2.8199]
[1730049603589,11.93540713,177.54,177.51,2.8199]
[1730049603904,6.93540713,177.52,177.3,57.68506162]
[1730049604103,6.93540713,177.48,177.42,6.93540713]
[1730049604308,11.93540713,177.48,177.43,6.30023573]
[1730049604609,14.75590713,177.48,177.44,7.7103763]
[1730049604815,14.75590713,177.48,177.44,2.8209]
[1730049604997,14.75590713,177.48,177.45,2.8209]
[1730049607315,2.8206,177.47,177.44,2.821]
[1730049607609,11.93540713,177.48,177.43,6.93540713]
[1730049608007,14.75590713,177.48,177.45,2.8209]
[1730049609512,2.8205,177.48,177.45,2.8209]
[1730049609904,2.8205,177.48,177.46,2.8207]
[1730049610417,5.02,177.49,177.46,2.8207]
[1730049610716,7.8404,177.49,177.46,2.8207]
[1730049611415,6.93540713,177.5,177.47,2.8205]
[1730049611611,11.95540713,177.5,177.45,4.88721701]
[1730049611811,11.95540713,177.5,177.44,6.93540713]
[1730049612007,5.02,177.5,177.45,4.88721795]
[1730049612210,6.93540713,177.45,177.38,6.93540713]
[1730049612420,5.02,177.44,177.39,6.29800767]
[1730049612614,7.8411,177.44,177.41,2.8214]
[1730049613721,7.8411,177.44,177.36,0.9063]
[1730049613722,5.02,177.51,177.43,6.93540713]
[1730049613914,2.8204,177.49,177.45,2.8208]
[1730049614117,6.93540713,177.49,177.37,5.6442]
[1730049614420,2.8206,177.47,177.44,2.8209]
[1730049614920,6.93540713,177.49,177.44,2.8209]
[1730049615215,1.1559,177.53,177.49,2.8202]
[1730049615216,6.1759,177.53,177.49,2.8202]
[1730049616216,2.8199,177.52,177.49,2.8202]
[1730049616718,6.1759,177.53,177.48,2.8203]